[Event "4NCL 2nd Div 2023-24"]
[Site "Daventry"]
[Date "2024.05.06"]
[Round "11.23"]
[White "Willson, Ollie"]
[Black "Farrand, Tom"]
[Result "1/2-1/2"]
[ECO "A61"]
[WhiteElo "2106"]
[BlackElo "2079"]
[Annotator "NA RC"]
[PlyCount "82"]
[EventDate "2023.11.11"]
[EventType "team-tourn"]
[EventCountry "ENG"]
[SourceTitle "playchess.com"]
[Source "ChessBase"]
[SourceQuality "1"]
[TimeControl "40/6000+30:3000+30"]

1. d4 {[%emt 0:00:11]} Nf6 {[%emt 0:01:11]} 2. c4 {[%emt 0:00:13]} c5 {[%emt 0:00:19]} 3. d5 {[%emt 0:01:10]} e6 {[%emt 0:00:07]} 4. Nc3 {[%emt 0:00:08]} exd5 {[%emt 0:00:50]} 5. cxd5 {[%emt 0:00:26]} d6 {[%emt 0:00:07]} 6. Nf3 {[%emt 0:00:11]} g6 {[%emt 0:01:25]} 7. Bf4 {[%emt 0:02:08]} Bg7 {[%emt 0:02:58]} 8. e3 {[%emt 0:00:52]} O-O {[%emt 0:01:33]} 9. Be2 {[%emt 0:01:35]} Bg4 {[%emt 0:05:29]} 10. O-O {[%emt 0:05:05]} Bxf3 {[%emt 0:05:00]} 11. Bxf3 {[%emt 0:00:08]} a6 {[%emt 0:00:13]} 12. a4 {[%emt 0:00:07]} Qc7 {[%emt 0:01:35]} 13. e4 {[%emt 0:17:24]} Nbd7 {[%emt 0:10:53]} 14. Re1 {[%emt 0:00:19]} Rfe8 {[%emt 0:00:35]} 15. Qc2 {[%emt 0:09:11]} Ne5 {[%emt 0:11:31]} 16. Be2 {[%emt 0:00:37]} Rac8 {[%emt 0:01:14]} 17. h3 {[%emt 0:06:04]} h6 $14 {[%emt 0:04:55]} (17... Nfd7 $11) 18. Bh2 {[%emt 0:05:56]} c4 {[%emt 0:08:07]} 19. Kh1 {[%emt 0:09:45]} g5 {[%emt 0:08:05]} 20. Bg1 {[%emt 0:15:21]} Ng6 {[%emt 0:04:35]} 21. a5 {[%emt 0:13:29]} h5 {[%emt 0:15:32]} 22. Ra4 {[%emt 0:05:14]} g4 {[%emt 0:04:25]} 23. Bh2 {[%emt 0:06:06]} Qd7 {[%emt 0:01:20]} 24. Rxc4 {[%emt 0:03:21]} gxh3 {[%emt 0:01:18]} 25. g3 {[%emt 0:00:03]} Rxc4 {[%emt 0:02:01]} 26. Bxc4 {[%emt 0:00:03]} Ne5 {[%emt 0:00:26]} 27. Be2 {[%emt 0:01:53]} Nfg4 {[%emt 0:01:31]} 28. f3 {[%emt 0:02:40]} Nxh2 {[%emt 0:00:51]} 29. Kxh2 {[%emt 0:00:02]} h4 {[%emt 0:00:32]} 30. Rg1 {[%emt 0:01:01]} Ng6 {[%emt 0:00:25]} 31. gxh4 {[%emt 0:01:03]} Qe7 {[%emt 0:03:54]} 32. Bf1 {[%emt 0:02:13]} Qxh4 {[%emt 0:02:05]} 33. Rg4 {[%emt 0:00:01]} Qf6 {[%emt 0:00:19]} 34. Qf2 {[%emt 0:00:31]} Ne5 {[%emt 0:01:15]} 35. Rg3 {[%emt 0:00:17]} Qf4 {[%emt 0:02:27]} 36. Kh1 {[%emt 0:00:11]} Ng6 {[%emt 0:01:39]} 37. Rg4 {[%emt 0:01:55]} Qc1 {[%emt 0:00:31]} 38. f4 {[%emt 0:00:07]} Bxc3 {[%emt 0:01:57]} 39. bxc3 {[%emt 0:00:06]} Rxe4 {[%emt 0:00:08]} 40. Qg1 {[%emt 0:01:58]} Rxf4 {[%emt 0:05:02]} 41. Rxg6+ {[%emt 0:33:50]} fxg6 {[%emt 0:00:19]} 1/2-1/2

[Event "4NCL 2nd Div 2023-24"]
[Site "Daventry"]
[Date "2024.05.06"]
[Round "11.24"]
[White "Foley, John P"]
[Black "Graham, Cassie M"]
[Result "0-1"]
[ECO "A48"]
[WhiteElo "1974"]
[BlackElo "1974"]
[Annotator "NA RC"]
[PlyCount "140"]
[EventDate "2023.11.11"]
[EventType "team-tourn"]
[EventCountry "ENG"]
[SourceTitle "playchess.com"]
[Source "ChessBase"]
[SourceQuality "1"]
[TimeControl "40/6000+30:3000+30"]

1. d4 {[%emt 0:00:03]} Nf6 {[%emt 0:00:06]} 2. Nf3 {[%emt 0:00:10]} g6 {[%emt 0:00:06]} 3. Bf4 {[%emt 0:00:27]} Bg7 {[%emt 0:00:07]} 4. Nc3 {[%emt 0:00:21]} d6 {[%emt 0:02:35]} 5. Qd2 {[%emt 0:00:31]} h5 {[%emt 0:04:40]} 6. e4 {[%emt 0:01:22]} c6 {[%emt 0:01:08]} 7. Bd3 {[%emt 0:02:33]} Bg4 {[%emt 0:11:42]} 8. Ng5 {[%emt 0:03:18]} Nh7 {[%emt 0:12:36]} 9. Nxh7 {[%emt 0:04:19]} Rxh7 {[%emt 0:00:04]} 10. h3 {[%emt 0:01:15]} Be6 {[%emt 0:02:46]} 11. e5 {[%emt 0:05:34]} dxe5 {[%emt 0:03:14]} 12. dxe5 {[%emt 0:04:20]} Qa5 {[%emt 0:09:33]} 13. b4 {[%emt 0:05:36]} Qc7 {[%emt 0:01:58]} 14. O-O {[%emt 0:01:11]} Nd7 {[%emt 0:04:18]} 15. Rfe1 {[%emt 0:01:48]} O-O-O $16 {[%emt 0:01:29]} 16. Qe2 {[%emt 0:02:34]} Rhh8 {[%emt 0:02:22]} 17. Rab1 {[%emt 0:06:39]} g5 {[%emt 0:04:16]} 18. Bh2 {[%emt 0:03:31]} h4 {[%emt 0:09:43]} 19. Qe3 {[%emt 0:08:51]} Qb6 {[%emt 0:07:46]} 20. f3 {[%emt 0:15:07]} Qxe3+ {[%emt 0:10:46]} 21. Rxe3 {[%emt 0:00:08]} Bh6 {[%emt 0:00:16]} 22. Re2 {[%emt 0:01:46]} Nb6 {[%emt 0:04:04]} 23. Kf1 {[%emt 0:03:29]} Nc4 {[%emt 0:07:03]} 24. Ne4 {[%emt 0:06:16]} Bd5 {[%emt 0:01:07]} 25. Ke1 {[%emt 0:04:19]} Na3 {[%emt 0:06:20]} 26. Rd1 {[%emt 0:04:39]} Nb5 {[%emt 0:00:44]} 27. Bxb5 {[%emt 0:06:19]} cxb5 {[%emt 0:00:18]} 28. Bg1 {[%emt 0:07:10]} b6 {[%emt 0:00:18]} 29. Nc3 {[%emt 0:04:17]} Bc4 {[%emt 0:00:17]} 30. Rxd8+ {[%emt 0:01:18]} Rxd8 {[%emt 0:00:06]} 31. Re4 {[%emt 0:01:00]} f5 {[%emt 0:02:37]} 32. exf6 {[%emt 0:00:22]} exf6 {[%emt 0:00:04]} 33. Be3 {[%emt 0:02:10]} Bf8 {[%emt 0:00:43]} 34. a3 {[%emt 0:00:17]} Bd6 {[%emt 0:00:37]} 35. Ne2 {[%emt 0:02:23]} f5 {[%emt 0:01:09]} 36. Rd4 {[%emt 0:00:27]} f4 {[%emt 0:00:06]} 37. Bc1 {[%emt 0:01:01]} Kc7 {[%emt 0:00:36]} 38. Kd2 {[%emt 0:01:30]} Re8 {[%emt 0:00:33]} 39. Re4 {[%emt 0:00:26]} Rd8 {[%emt 0:00:33]} 40. Rd4 {[%emt 0:00:32]} Rf8 {[%emt 0:00:57]} 41. Re4 {[%emt 0:06:05]} a5 {[%emt 0:10:42]} 42. c3 {[%emt 0:01:09]} Bd5 {[%emt 0:04:30]} 43. Rd4 {[%emt 0:03:03]} Bg8 {[%emt 0:04:40]} 44. Re4 {[%emt 0:03:49]} Bh7 {[%emt 0:04:10]} 45. Re6 {[%emt 0:02:35]} Kd7 {[%emt 0:07:24]} 46. Nd4 {[%emt 0:01:27]} axb4 {[%emt 0:01:50]} 47. cxb4 {[%emt 0:01:14]} Rc8 {[%emt 0:06:59]} 48. Rh6 {[%emt 0:01:23]} Bb1 {[%emt 0:00:15]} 49. Bb2 {[%emt 0:05:11]} Be5 {[%emt 0:02:43]} 50. Rxb6 {[%emt 0:01:16]} Rc4 {[%emt 0:03:04]} 51. Rxb5 {[%emt 0:01:58]} Bxd4 {[%emt 0:00:31]} 52. Rd5+ {[%emt 0:01:09]} Kc6 {[%emt 0:02:32]} 53. Rxd4 {[%emt 0:00:36]} Rc2+ {[%emt 0:00:14]} 54. Kd1 {[%emt 0:00:43]} Rxb2 {[%emt 0:00:16]} 55. Kc1 {[%emt 0:00:36]} Rb3 {[%emt 0:02:26]} 56. Rc4+ {[%emt 0:00:19]} Kd5 {[%emt 0:01:53]} 57. Rc5+ {[%emt 0:00:21]} Kd4 {[%emt 0:00:04]} 58. Rxg5 {[%emt 0:00:32]} Bd3 {[%emt 0:00:06]} 59. Rg8 {[%emt 0:05:19]} Kc3 {[%emt 0:01:31]} 60. Rc8+ {[%emt 0:01:06]} Bc4 {[%emt 0:00:11]} 61. Ra8 {[%emt 0:09:40]} Rb2 {[%emt 0:00:11]} 62. b5 {[%emt 0:00:24]} Rxg2 {[%emt 0:00:36]} 63. Rd8 {[%emt 0:00:20]} Rg1+ {[%emt 0:00:35]} 64. Rd1 {[%emt 0:00:03]} Rxd1+ {[%emt 0:00:16]} 65. Kxd1 {[%emt 0:00:01]} Bxb5 {[%emt 0:00:06]} 66. Ke1 {[%emt 0:00:18]} Kd3 {[%emt 0:00:20]} 67. Kf2 {[%emt 0:00:18]} Kd2 {[%emt 0:00:08]} 68. Kg2 {[%emt 0:00:40]} Ke3 {[%emt 0:00:11]} 69. Kg1 {[%emt 0:00:25]} Kxf3 {[%emt 0:00:10]} 70. Kh2 {[%emt 0:00:10]} Ke2 {[%emt 0:00:16]} 0-1

[Event "4NCL 2nd Div 2023-24"]
[Site "Daventry"]
[Date "2024.05.06"]
[Round "11.25"]
[White "Bowcott-Terry, Finlay"]
[Black "Atako, Chino C"]
[Result "1-0"]
[ECO "C18"]
[WhiteElo "2097"]
[BlackElo "2007"]
[Annotator "NA RC"]
[PlyCount "75"]
[EventDate "2023.11.11"]
[EventType "team-tourn"]
[EventCountry "ENG"]
[SourceTitle "playchess.com"]
[Source "ChessBase"]
[SourceQuality "1"]
[TimeControl "40/6000+30:3000+30"]

1. e4 {[%emt 0:00:02]} e6 {[%emt 0:00:03]} 2. d4 {[%emt 0:00:05]} d5 {[%emt 0:00:07]} 3. Nc3 {[%emt 0:00:05]} Bb4 {[%emt 0:00:06]} 4. e5 {[%emt 0:00:05]} c5 {[%emt 0:00:06]} 5. a3 {[%emt 0:00:06]} Bxc3+ {[%emt 0:00:05]} 6. bxc3 {[%emt 0:00:02]} Qa5 {[%emt 0:00:09]} 7. Bd2 {[%emt 0:00:16]} Qa4 {[%emt 0:00:08]} 8. Qb1 {[%emt 0:01:23]} c4 {[%emt 0:00:09]} 9. h4 {[%emt 0:01:11]} Nc6 {[%emt 0:00:41] C18: French: 3 Nc3 Bb4: Main line: 7 h4 and 7 Qg4.} 10. h5 {[%emt 0:00:10]} h6 {[%emt 0:00:07]} 11. Ne2 {[%emt 0:00:29]} Nge7 {[%emt 0:00:36]} 12. g4 {[%emt 0:00:22]} b6 {[%emt 0:09:46]} 13. Rh3 {[%emt 0:02:22]} Bd7 {[%emt 0:01:49]} 14. Rf3 {[%emt 0:00:53]} Rf8 {[%emt 0:03:53]} 15. g5 {[%emt 0:00:59]} hxg5 {[%emt 0:00:11]} 16. Bxg5 {[%emt 0:00:06]} O-O-O {[%emt 0:01:07]} 17. Bh3 {[%emt 0:00:12]} Rde8 {[%emt 0:03:12]} 18. Kd1 {[%emt 0:02:47]} Rh8 {[%emt 0:06:37]} 19. Ng3 {[%emt 0:04:52]} Nf5 {[%emt 0:03:42]} 20. Bxf5 {[%emt 0:00:49]} exf5 {[%emt 0:00:09]} 21. Qc1 {[%emt 0:00:41]} Qa5 {[%emt 0:00:29]} 22. Qf4 {[%emt 0:02:09]} Re6 {[%emt 0:05:28]} 23. Qd2 {[%emt 0:29:08]} f6 {[%emt 0:27:08]} 24. exf6 {[%emt 0:00:07]} gxf6 {[%emt 0:00:02]} 25. Be3 {[%emt 0:00:44]} Re4 {[%emt 0:05:27]} 26. Rf4 $11 {[%emt 0:01:51]} ({Reject} 26. Nxf5 $6 Rxh5 27. Nd6+ Kc7 28. Nxe4 dxe4 29. Bf4+ (29. Rxf6 $2 {loses.} Rh1+ 30. Ke2 Qh5+ 31. f3 Rxa1 $19) 29... Kc8 $11) (26. Bf4 $1 $14) 26... Rxf4 {[%emt 0:03:23]} 27. Bxf4 {[%emt 0:00:01]} Be8 {[%emt 0:00:33]} 28. h6 {[%emt 0:00:11]} Ne7 {[%emt 0:00:15]} 29. Bd6 {[%emt 0:00:57]} Ng6 {[%emt 0:02:29]} 30. Nxf5 {[%emt 0:00:21]} Qb5 {[%emt 0:00:27]} 31. Bg3 {[%emt 0:00:40]} Qd7 {[%emt 0:00:24]} 32. Nd6+ {[%emt 0:00:16]} Kd8 {[%emt 0:00:25]} 33. Kc1 {[%emt 0:01:23]} Qh3 {[%emt 0:00:51]} 34. Kb2 {[%emt 0:00:07]} Qxh6 {[%emt 0:01:00]} 35. Qe2 {[%emt 0:00:09]} Qh3 {[%emt 0:04:49]} 36. Re1 {[%emt 0:01:00]} Qd7 {[%emt 0:08:54]} 37. Qf3 {[%emt 0:00:54]} Ne7 {[%emt 0:01:49]} 38. Qxf6 {[%emt 0:00:14]} 1-0

[Event "4NCL 2nd Div 2023-24"]
[Site "Daventry"]
[Date "2024.05.06"]
[Round "11.26"]
[White "Borrowdale, Graham E"]
[Black "Pitcher, John"]
[Result "1/2-1/2"]
[ECO "D15"]
[WhiteElo "1943"]
[BlackElo "2182"]
[Annotator "RC"]
[PlyCount "38"]
[EventDate "2023.11.11"]
[EventType "team-tourn"]
[EventCountry "ENG"]
[SourceTitle "playchess.com"]
[Source "ChessBase"]
[SourceQuality "1"]
[TimeControl "40/6000+30:3000+30"]

1. c4 {[%emt 0:00:04]} c6 {[%emt 0:00:18]} 2. Nf3 {[%emt 0:00:47]} d5 {[%emt 0:00:08]} 3. d4 {[%emt 0:00:25]} Nf6 {[%emt 0:00:07]} 4. Nc3 {[%emt 0:00:17]} a6 {[%emt 0:00:08]} 5. e3 {[%emt 0:00:35]} b5 {[%emt 0:02:40]} 6. b3 {[%emt 0:02:25]} Bg4 {[%emt 0:00:51]} 7. h3 {[%emt 0:03:45]} Bxf3 {[%emt 0:00:43]} 8. Qxf3 {[%emt 0:00:26]} e6 {[%emt 0:00:35]} 9. Bd3 {[%emt 0:02:28]} Be7 {[%emt 0:00:43]} 10. O-O {[%emt 0:00:35]} O-O {[%emt 0:00:31]} 11. Bb2 {[%emt 0:00:52]} Nbd7 {[%emt 0:01:35]} 12. Rad1 {[%emt 0:11:35]} Qa5 {[%emt 0:13:12]} 13. cxd5 {[%emt 0:10:57]} cxd5 {[%emt 0:00:59]} 14. Rc1 {[%emt 0:02:34]} Rac8 {[%emt 0:09:13]} 15. Bb1 {[%emt 0:05:25]} Ba3 {[%emt 0:12:21]} 16. Qe2 {[%emt 0:03:13]} Rc7 {[%emt 0:05:38]} 17. Qd2 {[%emt 0:07:20]} Rfc8 {[%emt 0:19:51]} 18. Bxa3 {[%emt 0:04:28]} Qxa3 {[%emt 0:00:18]} 19. Ne2 {[%emt 0:00:52]} g6 {[%emt 0:03:27]} 1/2-1/2

[Event "4NCL 2nd Div 2023-24"]
[Site "Daventry"]
[Date "2024.05.06"]
[Round "11.27"]
[White "Valdepenas Octavio, Javier"]
[Black "Webster, Peter A N"]
[Result "1-0"]
[ECO "C06"]
[WhiteElo "2182"]
[BlackElo "1939"]
[Annotator "RC"]
[PlyCount "101"]
[EventDate "2023.11.11"]
[EventType "team-tourn"]
[EventCountry "ENG"]
[SourceTitle "playchess.com"]
[Source "ChessBase"]
[SourceQuality "1"]
[TimeControl "40/6000+30:3000+30"]

1. e4 {[%emt 0:06:18]} e6 {[%emt 0:00:05]} 2. d4 {[%emt 0:00:10]} d5 {[%emt 0:00:06]} 3. Nd2 {[%emt 0:00:13]} Nf6 {[%emt 0:00:07]} 4. e5 {[%emt 0:00:08]} Nfd7 {[%emt 0:00:06]} 5. Bd3 {[%emt 0:00:16]} c5 {[%emt 0:00:09]} 6. c3 {[%emt 0:00:05]} Nc6 {[%emt 0:00:04]} 7. Ne2 {[%emt 0:00:05]} cxd4 {[%emt 0:00:10]} 8. cxd4 {[%emt 0:00:06]} f6 {[%emt 0:00:13]} 9. exf6 {[%emt 0:00:06]} Nxf6 {[%emt 0:00:12]} 10. O-O {[%emt 0:00:08]} Bd6 {[%emt 0:00:30]} 11. Nf3 {[%emt 0:00:07]} O-O {[%emt 0:01:26]} 12. Bf4 {[%emt 0:00:09]} Bxf4 {[%emt 0:00:39]} 13. Nxf4 {[%emt 0:00:07]} Ne4 {[%emt 0:00:53]} 14. Qc1 {[%emt 0:01:39]} Ng5 {[%emt 0:03:23]} 15. Nxg5 {[%emt 0:00:34]} Qxg5 {[%emt 0:00:11]} 16. Ne2 {[%emt 0:00:10]} Qxc1 {[%emt 0:01:57]} 17. Raxc1 {[%emt 0:00:12]} Bd7 {[%emt 0:03:15]} 18. Bb5 {[%emt 0:09:35]} Rac8 {[%emt 0:04:24]} 19. Bxc6 {[%emt 0:00:25]} Rxc6 {[%emt 0:00:48]} 20. Rxc6 {[%emt 0:01:49]} Bxc6 {[%emt 0:00:30]} 21. Rc1 {[%emt 0:02:51]} g5 {[%emt 0:04:33]} 22. f3 {[%emt 0:01:38]} Bb5 {[%emt 0:13:05]} 23. Ng3 {[%emt 0:10:43]} Bd3 {[%emt 0:09:07]} 24. Kf2 {[%emt 0:01:46]} Bg6 {[%emt 0:06:00]} 25. Ke3 {[%emt 0:00:15]} h5 {[%emt 0:05:50]} 26. Ne2 {[%emt 0:02:43]} h4 {[%emt 0:00:56]} 27. Rc5 {[%emt 0:13:30]} Bh5 {[%emt 0:05:26]} 28. h3 {[%emt 0:09:33]} Rf7 {[%emt 0:04:06]} 29. Nc3 {[%emt 0:02:47]} Kg7 {[%emt 0:08:22]} 30. Nb5 {[%emt 0:08:33]} a6 {[%emt 0:00:44]} 31. Nd6 {[%emt 0:01:21]} Rd7 {[%emt 0:02:49]} 32. Nc8 {[%emt 0:00:14]} Kf6 {[%emt 0:01:43]} 33. a4 {[%emt 0:01:14]} Kf5 {[%emt 0:06:41]} 34. b4 {[%emt 0:04:45]} Be8 {[%emt 0:07:06]} 35. a5 {[%emt 0:15:55]} e5 {[%emt 0:04:52]} 36. Nb6 {[%emt 0:01:05]} exd4+ {[%emt 0:05:20]} 37. Kxd4 {[%emt 0:00:18]} Rd8 {[%emt 0:13:12]} 38. Rc7 {[%emt 0:03:58]} Kf4 {[%emt 0:00:00]} 39. Rxb7 {[%emt 0:03:55]} Kg3 40. Rg7 {[%emt 0:00:30]} Kxg2 41. Rxg5+ {[%emt 0:50:30]} Kxh3 42. Rg8 {[%emt 0:00:30]} Kh2 43. f4 {[%emt 0:00:30]} h3 44. f5 {[%emt 0:00:30]} Rd6 45. Rxe8 {[%emt 0:00:30]} Kg2 46. Rg8+ {[%emt 0:00:30]} Kf2 47. Rh8 {[%emt 0:00:30]} Kg2 48. Ke5 {[%emt 0:00:30]} Rc6 49. f6 {[%emt 0:00:30]} Rc1 50. f7 {[%emt 0:00:30]} Re1+ 51. Kxd5 {[%emt 0:00:30]} 1-0

[Event "4NCL 2nd Div 2023-24"]
[Site "Daventry"]
[Date "2024.05.06"]
[Round "11.28"]
[White "Camp, Imogen A L"]
[Black "Fallowfield, Jeremy R"]
[Result "1-0"]
[ECO "E97"]
[WhiteElo "1899"]
[BlackElo "2108"]
[Annotator "NA RC"]
[PlyCount "81"]
[EventDate "2023.11.11"]
[EventType "team-tourn"]
[EventCountry "ENG"]
[SourceTitle "playchess.com"]
[Source "ChessBase"]
[SourceQuality "1"]
[TimeControl "40/6000+30:3000+30"]

1. d4 {[%emt 0:00:02]} Nf6 {[%emt 0:00:21]} 2. c4 {[%emt 0:00:06]} g6 {[%emt 0:00:17]} 3. Nc3 {[%emt 0:00:10]} Bg7 {[%emt 1:41:22]} 4. e4 {[%emt 0:00:06]} d6 {[%emt 0:00:00]} 5. Nf3 {[%emt 0:00:13]} O-O {[%emt 0:00:00]} 6. Be2 {[%emt 0:00:05]} e5 {[%emt 0:00:00]} 7. Be3 {[%emt 0:04:54]} Ng4 {[%emt 0:00:00]} 8. Bg5 {[%emt 0:01:15]} f6 {[%emt 0:00:00]} 9. Bh4 {[%emt 0:05:40]} Nc6 {[%emt 0:00:00]} 10. d5 {[%emt 0:00:53]} Ne7 {[%emt 0:00:00]} 11. O-O {[%emt 0:04:26]} g5 {[%emt 0:00:00] E97: King's Indian: Classical Main Line (6...e5 7 0-0 Nc6): 8 Be3 and 8 d5 Ne7, not 9 Ne1.} 12. Bg3 {[%emt 0:00:39]} Nh6 {[%emt 0:00:00]} 13. Ne1 {[%emt 0:07:26]} Ng6 {[%emt 0:00:00]} 14. Nd3 {[%emt 0:05:16]} Nf4 {[%emt 0:00:00]} 15. Rc1 {[%emt 0:04:29]} f5 {[%emt 0:00:00]} 16. exf5 {[%emt 0:01:56]} Nxf5 {[%emt 0:00:00]} 17. Bg4 {[%emt 0:06:00]} Nxg3 {[%emt 0:00:00]} 18. Bxc8 {[%emt 0:12:59]} Nxf1 {[%emt 0:00:00]} 19. Nxf4 {[%emt 0:01:23]} exf4 {[%emt 0:00:00]} 20. Be6+ {[%emt 0:00:27]} Kh8 {[%emt 0:00:00]} 21. Kxf1 {[%emt 0:01:12]} f3 $17 {[%emt 0:00:00]} 22. g3 {[%emt 0:08:51]} Qf6 {[%emt 0:00:00]} 23. Nb5 {[%emt 0:04:03]} Qe7 {[%emt 0:00:00]} 24. Nd4 {[%emt 0:04:29]} Qf6 {[%emt 0:00:00]} 25. Nb5 {[%emt 0:01:23]} Rae8 {[%emt 0:00:00]} 26. Nxc7 {[%emt 0:03:17]} Re7 {[%emt 0:00:00]} 27. Nb5 {[%emt 0:01:07]} Rxe6 {[%emt 0:00:00]} 28. dxe6 {[%emt 0:01:44]} Qxe6 {[%emt 0:00:00]} 29. Kg1 {[%emt 0:11:29]} Bxb2 {[%emt 0:01:57]} 30. Rc2 {[%emt 0:01:50]} Bg7 {[%emt 0:01:08]} 31. Nxd6 {[%emt 0:01:44]} Qh3 {[%emt 0:00:52]} 32. Qf1 {[%emt 0:00:51]} Qe6 {[%emt 0:00:19]} 33. Nb5 {[%emt 0:04:06]} a6 {[%emt 0:02:19]} 34. Nc7 {[%emt 0:00:54]} Qe4 {[%emt 0:00:18]} 35. Rc1 {[%emt 0:00:33]} Rc8 {[%emt 0:01:34]} 36. Nd5 {[%emt 0:06:04]} Bd4 {[%emt 0:02:25]} 37. Re1 {[%emt 0:03:24]} Qc2 {[%emt 0:00:13]} 38. Ne3 {[%emt 0:01:23]} Qxa2 {[%emt 0:02:07]} 39. Qh3 {[%emt 0:01:46]} Re8 {[%emt 0:01:13]} 40. Qd7 {[%emt 0:00:45]} Re4 {[%emt 0:03:29]} 41. Qc8+ {[%emt 0:08:53]} 1-0

[Event "4NCL 2nd Div 2023-24"]
[Site "Daventry"]
[Date "2024.05.06"]
[Round "11.29"]
[White "Pal, Rohan"]
[Black "Watson, Jacob"]
[Result "1-0"]
[ECO "B30"]
[WhiteElo "2086"]
[BlackElo "1902"]
[Annotator "NA RC"]
[PlyCount "101"]
[EventDate "2023.11.11"]
[EventType "team-tourn"]
[EventCountry "ENG"]
[SourceTitle "playchess.com"]
[Source "ChessBase"]
[SourceQuality "1"]
[TimeControl "40/6000+30:3000+30"]

1. e4 {[%emt 0:00:03]} c5 {[%emt 0:00:21]} 2. Nf3 {[%emt 0:00:05]} Nc6 {[%emt 0:00:08]} 3. Bb5 {[%emt 0:00:03]} e6 {[%emt 0:01:14]} 4. O-O {[%emt 0:00:06]} Nge7 {[%emt 0:00:59]} 5. Re1 {[%emt 0:00:06]} a6 {[%emt 0:00:11]} 6. Bf1 {[%emt 0:00:04]} d5 {[%emt 0:00:08]} 7. exd5 {[%emt 0:00:05]} Nxd5 {[%emt 0:00:04]} 8. d4 {[%emt 0:00:06]} cxd4 {[%emt 0:03:37]} 9. Nxd4 {[%emt 0:00:08]} Be7 {[%emt 0:05:04] B30: Sicilian: 2...Nc6 3 Bb5, lines without ...g6.} 10. Nxc6 {[%emt 0:08:00]} bxc6 {[%emt 0:00:15]} 11. c4 {[%emt 0:03:05]} Nf6 {[%emt 0:01:54]} 12. Qxd8+ {[%emt 0:01:37]} Bxd8 {[%emt 0:01:01]} 13. g3 {[%emt 0:01:41]} Bd7 {[%emt 0:07:00]} 14. Bg2 {[%emt 0:01:12]} Bb6 {[%emt 0:03:15]} 15. Be3 {[%emt 0:02:46]} Bxe3 {[%emt 0:00:24]} 16. Rxe3 {[%emt 0:00:05]} Rb8 {[%emt 0:00:21]} 17. b3 {[%emt 0:01:08]} O-O {[%emt 0:02:45]} 18. Nc3 {[%emt 0:00:28]} c5 {[%emt 0:03:38]} 19. Rd1 {[%emt 0:02:06]} Rfc8 {[%emt 0:02:24]} 20. Ne4 {[%emt 0:05:32]} Be8 {[%emt 0:01:27]} 21. Nxf6+ {[%emt 0:02:42]} gxf6 {[%emt 0:00:06]} 22. f4 {[%emt 0:06:10]} a5 {[%emt 0:02:13]} 23. f5 {[%emt 0:02:59]} e5 {[%emt 0:09:50]} ({Better is} 23... Rb6 $14) 24. Rd6 $16 {[%emt 0:02:29]} Kg7 {[%emt 0:00:15]} 25. g4 {[%emt 0:14:18]} Rd8 {[%emt 0:05:46]} 26. Rxd8 {[%emt 0:03:19]} Rxd8 {[%emt 0:00:05]} 27. Bd5 {[%emt 0:00:35]} h5 {[%emt 0:05:47]} 28. gxh5 {[%emt 0:09:45]} Kh6 {[%emt 0:08:29]} 29. Kf2 {[%emt 0:09:02]} Rd6 {[%emt 0:04:47]} 30. Kf3 {[%emt 0:04:07]} a4 {[%emt 0:05:40]} 31. Ke4 {[%emt 0:10:18]} axb3 {[%emt 0:00:54]} 32. Rxb3 {[%emt 0:01:09]} Ba4 {[%emt 0:02:32]} 33. Rb2 {[%emt 0:02:13]} Kxh5 {[%emt 0:03:00]} 34. Bxf7+ {[%emt 0:00:35]} Kh6 {[%emt 0:00:32]} 35. Bd5 {[%emt 0:00:30]} Ra6 {[%emt 0:05:19]} 36. Bb7 {[%emt 0:02:42]} Rd6 {[%emt 0:00:07]} 37. Bd5 {[%emt 0:00:03]} Ra6 {[%emt 0:00:05]} 38. Rg2 {[%emt 0:06:53]} Be8 {[%emt 0:11:44]} 39. Rg8 {[%emt 0:02:29]} Ba4 {[%emt 0:01:00]} 40. Rg6+ {[%emt 0:01:37]} Kh7 {[%emt 0:00:43]} 41. Bg8+ {[%emt 0:53:58]} Kh8 {[%emt 0:50:19]} 42. Kd5 {[%emt 0:00:21]} Bc2 {[%emt 0:02:36]} 43. Be6 {[%emt 0:02:01]} e4 {[%emt 0:01:09]} 44. Rg3 {[%emt 0:00:00]} Rxa2 {[%emt 0:00:00]} 45. Kxc5 {[%emt 0:00:00]} Ra1 {[%emt 0:00:00]} 46. Kd6 {[%emt 0:00:00]} Rd1+ {[%emt 0:00:00]} 47. Ke7 {[%emt 0:00:00]} Rd3 {[%emt 0:00:00]} 48. c5 {[%emt 0:00:00]} e3 {[%emt 0:00:00]} 49. c6 {[%emt 0:00:00]} Rc3 {[%emt 0:00:00]} 50. Kxf6 {[%emt 0:00:00]} e2 {[%emt 0:00:00]} 51. Rxc3 {[%emt 0:00:00]} 1-0

[Event "4NCL 2nd Div 2023-24"]
[Site "Daventry"]
[Date "2024.05.06"]
[Round "11.30"]
[White "Lim, Mark"]
[Black "Shephard, Chris C W"]
[Result "0-1"]
[ECO "A04"]
[WhiteElo "2265"]
[BlackElo "2155"]
[Annotator "TA"]
[PlyCount "32"]
[EventDate "2023.11.11"]
[EventType "team-tourn"]
[EventCountry "ENG"]
[SourceTitle "playchess.com"]
[Source "ChessBase"]
[SourceQuality "1"]
[TimeControl "40/6000+30:3000+30"]

{[%evp 9,32,-28,6,-22,-11,-31,-14,-35,-33,-58,-57,-65,-30,-28,-31,-33,-13,-112,-105,-254,-221,-619,-608,-645,-651]} 1. Nf3 {[%emt 0:01:51]} f5 {[%emt 0:00:08]} 2. d3 {[%emt 0:00:13]} d6 {[%emt 0:02:58]} 3. e4 {[%emt 0:00:47]} e5 {[%emt 0:00:21]} 4. exf5 {[%emt 0:00:25]} Bxf5 {[%emt 0:00:35]} 5. Nc3 {[%emt 0:08:37]} Be7 {[%emt 0:08:36]} 6. Be3 {[%emt 0:01:32]} Nf6 {[%emt 0:00:23]} 7. h3 {[%emt 0:02:16]} Nc6 {[%emt 0:11:45]} 8. g4 {[%emt 0:02:27][%cal Bg2g4,Bg4g5][%mdl 32] The position is equal.} Bg6 {[%emt 0:03:33]} 9. g5 {[%emt 0:04:35]} Nh5 {[%emt 0:02:04]} 10. Be2 {[%emt 0:05:56][%cal Of3e5]} Nf4 {[%emt 0:19:45]} 11. Bxf4 {[%emt 0:01:26]} exf4 {[%emt 0:00:05]} 12. Nd5 {[%emt 0:01:21]} O-O {[%emt 0:00:40]} 13. Qd2 {[%emt 0:03:46]} (13. h4 $11 {keeps the balance.}) 13... Bxg5 $17 {[%emt 0:10:00]} 14. Nxg5 {[%emt 0:25:00]} (14. h4 $17 {is a better defense.} Bh6 15. d4) 14... Qxg5 $19 {[%emt 0:00:30]} 15. Nxc7 {[%emt 0:02:44] [#]} (15. Nc3) 15... Rac8 {[%emt 0:03:18]} 16. Ne6 {[%emt 0:01:19]} Qd5 {[%emt 0:00:12][%csl LRe6,LRh1] Load lights: Black=0.87/Average=0.13 (very precise) .  Mistake:       	Black=3     	---        Inaccurate:     	---       	Average=1     Done:        	Black=2     	Average=4     OK:         	---       	Average=1} 0-1